[Event "ARM-ch Rapid 2019"]
[Site "Yerevan"]
[Date "2019.01.22"]
[Round "1.4"]
[White "Vaganian, Rafael A"]
[Black "Ziroyan, David"]
[Result "1/2-1/2"]
[WhiteElo "2546"]
[BlackElo "1957"]
[Annotator "RC"]
[PlyCount "102"]
[EventDate "2019.01.22"]
[EventType "tourn"]
[EventCountry "ARM"]
[TimeControl "40/5400+30:1800+30"]
[WhiteClock "0:00:21"]
[BlackClock "0:06:07"]

1. d4 {[%emt 1:15:12]} Nf6 {[%emt 1:15:16]} 2. c4 {[%emt 0:00:21]} c5 {[%emt 0:00:28]} 3. d5 {[%emt 0:00:20]} b5 {[%emt 0:00:26]} 4. cxb5 {[%emt 0:00:21]} a6 {[%emt 0:00:24]} 5. e3 {[%emt 0:00:21]} axb5 {[%emt 0:00:50]} 6. Bxb5 {[%emt 0:00:21]} Bb7 {[%emt 0:00:27]} 7. Nc3 {[%emt 0:00:22]} e6 {[%emt 0:01:17]} 8. e4 {[%emt 0:00:33]} Qa5 {[%emt 0:00:33]} 9. dxe6 {[%emt 0:01:24]} fxe6 {[%emt 0:00:45]} 10. f3 {[%emt 0:00:44]} Be7 {[%emt 0:00:41]} 11. Nge2 {[%emt 0:00:26]} O-O {[%emt 0:00:27]} 12. O-O {[%emt 0:01:23]} Nc6 {[%emt 0:01:06]} 13. Kh1 {[%emt 0:00:32]} d5 {[%emt 0:01:02]} 14. exd5 {[%emt 0:00:55]} exd5 {[%emt 0:00:27]} 15. Bg5 {[%emt 0:00:22]} Ne5 {[%emt 0:01:53]} 16. Nf4 {[%emt 0:00:38]} d4 {[%emt 0:01:06]} 17. Qb3+ {[%emt 0:00:21]} Kh8 {[%emt 0:00:41]} 18. Bxf6 {[%emt 0:00:21]} Rxf6 {[%emt 0:00:53]} 19. Ncd5 {[%emt 0:00:41]} Rf7 {[%emt 0:02:58]} 20. Nxe7 {[%emt 0:00:26]} Rxe7 {[%emt 0:00:24]} 21. Rfe1 {[%emt 0:00:22]} Qd8 {[%emt 0:05:04]} 22. a4 {[%emt 0:01:28]} Qd6 {[%emt 0:00:35]} 23. a5 {[%emt 0:00:51]} Nxf3 {[%emt 0:01:19]} 24. gxf3 {[%emt 0:04:12]} Rxe1+ {[%emt 0:00:56]} 25. Rxe1 {[%emt 0:00:21]} Qxf4 {[%emt 0:00:23]} 26. Be2 {[%emt 0:00:31]} Qd2 {[%emt 0:00:48]} 27. Ra1 {[%emt 0:00:37]} Rxa5 {[%emt 0:00:50]} 28. Rxa5 {[%emt 0:00:33]} Qxa5 {[%emt 0:00:26]} 29. Kg2 {[%emt 0:00:35]} Qc7 {[%emt 0:00:34]} 30. Qe6 {[%emt 0:00:31]} Qc8 {[%emt 0:00:38]} 31. Qe7 {[%emt 0:00:26]} h6 {[%emt 0:01:03]} 32. Qf7 {[%emt 0:01:08]} Qg4+ {[%emt 0:01:02]} 33. Kh1 {[%emt 0:00:53]} Qc8 {[%emt 0:00:32]} 34. Bc4 {[%emt 0:00:43]} Ba8 {[%emt 0:00:32]} 35. Kg1 {[%emt 0:00:27]} Bc6 {[%emt 0:00:27]} 36. Bd3 {[%emt 0:01:34]} Qe8 {[%emt 0:00:31]} 37. Qf5 {[%emt 0:00:21]} Qe1+ {[%emt 0:00:28]} 38. Kg2 {[%emt 0:00:22]} Qd2+ {[%emt 0:00:25]} 39. Kh3 {[%emt 0:00:23]} Bd7 {[%emt 0:00:31]} 40. Qxd7 {[%emt 0:00:31]} Qxd3 {[%emt 0:00:21]} 41. Kg4 {[%emt 0:31:25]} Qg6+ {[%emt 0:30:34]} 42. Kf4 {[%emt 0:00:32]} Qg5+ {[%emt 0:00:41]} 43. Ke4 {[%emt 0:00:21]} Kh7 {[%emt 0:00:25]} 44. f4 {[%emt 0:00:39]} Qg2+ {[%emt 0:00:31]} 45. Ke5 {[%emt 0:00:23]} Qe2+ {[%emt 0:00:29]} 46. Kd5 {[%emt 0:00:24]} d3 {[%emt 0:00:29]} 47. Qf5+ {[%emt 0:01:11]} Kg8 {[%emt 0:00:30]} 48. Kd6 {[%emt 0:00:30]} d2 {[%emt 0:00:25]} 49. Qc8+ {[%emt 0:00:12]} Kf7 {[%emt 0:00:30]} 50. Qf5+ {[%emt 0:00:30]} Kg8 {[%emt 0:00:40]} 51. Qc8+ {[%emt 0:00:23]} Kf7 {[%emt 0:00:26]} 1/2-1/2

[Event "ARM-ch Rapid 2019"]
[Site "Yerevan"]
[Date "2019.01.22"]
[Round "1.6"]
[White "Martirosyan, Haik M."]
[Black "Torosyan, Norayr"]
[Result "1/2-1/2"]
[WhiteElo "2607"]
[BlackElo "2362"]
[PlyCount "97"]
[EventDate "2019.01.22"]
[EventType "tourn"]
[EventCountry "ARM"]
[TimeControl "40/5400+30:1800+30"]
[WhiteClock "0:00:26"]
[BlackClock "0:03:43"]

1. e4 {[%emt 1:15:13]} e5 {[%emt 1:15:11]} 2. Nf3 {[%emt 0:00:22]} Nc6 {[%emt 0:00:22]} 3. Bc4 {[%emt 0:00:22]} Nf6 {[%emt 0:00:21]} 4. d3 {[%emt 0:00:21]} Be7 {[%emt 0:00:33]} 5. O-O {[%emt 0:00:24]} O-O {[%emt 0:00:22]} 6. Re1 {[%emt 0:00:22]} d6 {[%emt 0:00:21]} 7. a4 {[%emt 0:00:22]} Kh8 {[%emt 0:00:31]} 8. a5 {[%emt 0:00:27]} a6 {[%emt 0:00:20]} 9. h3 {[%emt 0:00:29]} Ng8 {[%emt 0:00:21]} 10. Nc3 {[%emt 0:00:24]} f5 {[%emt 0:00:44]} 11. Nd5 {[%emt 0:00:22]} fxe4 {[%emt 0:01:06]} 12. dxe4 {[%emt 0:00:26]} Nf6 {[%emt 0:00:21]} 13. b4 {[%emt 0:02:36]} Nxd5 {[%emt 0:02:52]} 14. exd5 {[%emt 0:00:22]} Nb8 {[%emt 0:00:59]} 15. Bd3 {[%emt 0:00:24]} Bf5 {[%emt 0:00:52]} 16. Bxf5 {[%emt 0:00:29]} Rxf5 {[%emt 0:00:21]} 17. c4 {[%emt 0:00:36]} Qf8 {[%emt 0:01:46]} 18. Be3 {[%emt 0:00:39]} Nd7 {[%emt 0:00:22]} 19. Nd2 {[%emt 0:00:29]} Bg5 {[%emt 0:01:25]} 20. Ne4 {[%emt 0:00:21]} Bxe3 {[%emt 0:00:53]} 21. fxe3 {[%emt 0:00:22]} Nf6 {[%emt 0:02:08]} 22. Ng3 {[%emt 0:00:23]} Rg5 {[%emt 0:00:44]} 23. Qf3 {[%emt 0:00:31]} Re8 {[%emt 0:04:00]} 24. Rf1 {[%emt 0:00:43]} Qe7 {[%emt 0:01:29]} 25. e4 {[%emt 0:00:40]} Qd7 {[%emt 0:00:31]} 26. Qe3 {[%emt 0:00:33]} Rg6 {[%emt 0:00:24]} 27. Rf3 {[%emt 0:00:22]} c6 {[%emt 0:00:43]} 28. Raf1 {[%emt 0:00:41]} cxd5 {[%emt 0:00:21]} 29. cxd5 {[%emt 0:00:37]} h6 {[%emt 0:01:30]} 30. Nf5 {[%emt 0:01:00]} Rc8 {[%emt 0:01:11]} 31. Nh4 {[%emt 0:02:21]} Rg5 {[%emt 0:00:21]} 32. Rxf6 {[%emt 0:01:13]} gxf6 {[%emt 0:00:21]} 33. Rxf6 {[%emt 0:00:24]} Qg7 {[%emt 0:02:10]} 34. Qf2 {[%emt 0:00:21]} Rc1+ {[%emt 0:00:49]} 35. Kh2 {[%emt 0:00:22]} Rc2 {[%emt 0:00:21]} 36. Qf3 {[%emt 0:01:03]} Rcxg2+ {[%emt 0:00:32]} 37. Nxg2 {[%emt 0:00:33]} Rxg2+ {[%emt 0:00:20]} 38. Qxg2 {[%emt 0:00:23]} Qxf6 {[%emt 0:00:21]} 39. Qd2 {[%emt 0:01:00]} Kh7 {[%emt 0:00:38]} 40. Qe3 {[%emt 0:00:32]} Qg5 {[%emt 0:00:39]} 41. Qf2 {[%emt 0:33:20]} Kg7 {[%emt 0:30:24]} 42. Qc2 {[%emt 0:00:22]} Kg6 {[%emt 0:00:45]} 43. Qd3 {[%emt 0:01:51]} Qf4+ {[%emt 0:00:28]} 44. Kg2 {[%emt 0:00:21]} Kg5 {[%emt 0:00:29]} 45. Qe2 {[%emt 0:01:13]} h5 {[%emt 0:00:21]} 46. Qf3 {[%emt 0:02:57]} Qxf3+ {[%emt 0:00:38]} 47. Kxf3 {[%emt 0:00:22]} h4 {[%emt 0:00:33]} 48. Ke3 {[%emt 0:00:21]} Kh5 {[%emt 0:00:20]} 49. Kf3 {[%emt 0:00:26]} 1/2-1/2

[Event "ARM-ch Rapid 2019"]
[Site "Yerevan"]
[Date "2019.01.22"]
[Round "1.8"]
[White "Mikaelyan, Arman"]
[Black "Eranyan, Khachatur"]
[Result "1-0"]
[WhiteElo "2474"]
[BlackElo "2141"]
[Annotator "RC"]
[PlyCount "89"]
[EventDate "2019.01.22"]
[EventType "tourn"]
[EventCountry "ARM"]
[TimeControl "40/5400+30:1800+30"]
[WhiteClock "0:00:20"]
[BlackClock "0:04:05"]

1. d4 {[%emt 1:15:15]} d5 {[%emt 1:15:12]} 2. Nf3 {[%emt 0:00:24]} Nf6 {[%emt 0:00:22]} 3. Bf4 {[%emt 0:00:25]} c5 {[%emt 0:00:29]} 4. e3 {[%emt 0:00:23]} Nc6 {[%emt 0:00:32]} 5. Nbd2 {[%emt 0:00:23]} cxd4 {[%emt 0:00:30]} 6. exd4 {[%emt 0:00:23]} Bg4 {[%emt 0:00:26]} 7. c3 {[%emt 0:00:34]} e6 {[%emt 0:01:45]} 8. Qb3 {[%emt 0:00:22]} Bd6 {[%emt 0:00:41]} 9. Bg3 {[%emt 0:02:35]} Qe7 {[%emt 0:03:11]} 10. Bd3 {[%emt 0:00:31]} O-O {[%emt 0:00:58]} 11. O-O {[%emt 0:00:36]} Bxg3 {[%emt 0:00:32]} 12. hxg3 {[%emt 0:00:23]} Rab8 {[%emt 0:01:27]} 13. Rae1 {[%emt 0:00:27]} b5 {[%emt 0:00:32]} 14. a3 {[%emt 0:02:02]} Bh5 {[%emt 0:01:26]} 15. Ne5 {[%emt 0:01:39]} Nxe5 {[%emt 0:00:45]} 16. dxe5 {[%emt 0:01:07]} Nd7 {[%emt 0:00:22]} 17. Qb4 {[%emt 0:00:22]} Qg5 {[%emt 0:03:17]} 18. Qd4 {[%emt 0:00:23]} Bg6 {[%emt 0:00:26]} 19. Nf3 {[%emt 0:00:50]} Qh6 {[%emt 0:01:31]} 20. Bxg6 {[%emt 0:00:30]} Qxg6 {[%emt 0:00:34]} 21. Qxa7 {[%emt 0:00:39]} Nb6 {[%emt 0:03:22]} 22. Nd4 {[%emt 0:00:23]} Nc4 {[%emt 0:00:22]} 23. Nc6 {[%emt 0:00:33]} Rbe8 {[%emt 0:00:22]} 24. Ne7+ {[%emt 0:01:21]} Rxe7 {[%emt 0:00:21]} 25. Qxe7 {[%emt 0:00:23]} Nd2 {[%emt 0:00:22]} 26. Qb4 {[%emt 0:01:49]} Nxf1 {[%emt 0:01:19]} 27. Rxf1 {[%emt 0:00:22]} Qd3 {[%emt 0:00:24]} 28. Re1 {[%emt 0:02:02]} Qd2 {[%emt 0:00:38]} 29. Re3 {[%emt 0:00:45]} Qd1+ {[%emt 0:01:20]} 30. Kh2 {[%emt 0:00:21]} Rc8 {[%emt 0:00:51]} 31. Rf3 {[%emt 0:00:56]} Qe2 {[%emt 0:00:28]} 32. Qf4 {[%emt 0:00:56]} Rf8 {[%emt 0:00:23]} 33. b4 {[%emt 0:00:23]} h6 {[%emt 0:01:01]} 34. g4 {[%emt 0:00:41]} Qc4 {[%emt 0:00:37]} 35. Qg3 {[%emt 0:00:49]} Ra8 {[%emt 0:00:30]} 36. g5 {[%emt 0:00:26]} hxg5 {[%emt 0:00:23]} 37. Qxg5 {[%emt 0:00:24]} Qe4 {[%emt 0:00:34]} 38. Rh3 {[%emt 0:01:26]} Qg6 {[%emt 0:00:33]} 39. Qf4 {[%emt 0:00:55]} Rxa3 {[%emt 0:00:30]} 40. Qh4 {[%emt 0:00:25]} f6 {[%emt 0:00:24]} 41. exf6 {[%emt 0:30:26]} Kf7 {[%emt 0:30:37]} 42. Rg3 {[%emt 0:01:08]} gxf6 {[%emt 0:00:28]} 43. Rxg6 {[%emt 0:00:23]} Kxg6 {[%emt 0:00:21]} 44. Qg3+ {[%emt 0:00:25]} Kf5 {[%emt 0:00:32]} 45. Qd3+ {[%emt 0:00:30]} 1-0

[Event "ARM-ch Rapid 2019"]
[Site "Yerevan"]
[Date "2019.01.22"]
[Round "2.4"]
[White "Davtyan, David Arm."]
[Black "Ter-Sahakyan, Samvel"]
[Result "1/2-1/2"]
[WhiteElo "2346"]
[BlackElo "2574"]
[PlyCount "215"]
[EventDate "2019.01.22"]
[EventType "tourn"]
[EventCountry "ARM"]
[TimeControl "40/5400+30:1800+30"]
[WhiteClock "0:00:45"]
[BlackClock "0:01:59"]

1. Nf3 {[%emt 1:15:14]} d5 {[%emt 1:15:12]} 2. d4 {[%emt 0:00:23]} Nf6 {[%emt 0:00:25]} 3. g3 {[%emt 0:00:22]} g6 {[%emt 0:00:48]} 4. Bg2 {[%emt 0:00:22]} Bg7 {[%emt 0:00:21]} 5. O-O {[%emt 0:00:22]} c6 {[%emt 0:00:22]} 6. c4 {[%emt 0:00:24]} dxc4 {[%emt 0:00:22]} 7. a4 {[%emt 0:01:00]} O-O {[%emt 0:02:14]} 8. Nc3 {[%emt 0:00:42]} a5 {[%emt 0:00:37]} 9. e4 {[%emt 0:01:10]} Na6 {[%emt 0:01:00]} 10. Qe2 {[%emt 0:00:50]} Nb4 {[%emt 0:00:43]} 11. Qxc4 {[%emt 0:01:05]} b6 {[%emt 0:00:21]} 12. Rd1 {[%emt 0:01:04]} Ba6 {[%emt 0:00:21]} 13. Qb3 {[%emt 0:00:24]} e6 {[%emt 0:02:11]} 14. Bf4 {[%emt 0:02:15]} Rc8 {[%emt 0:00:43]} 15. Ne5 {[%emt 0:00:48]} Nd7 {[%emt 0:00:56]} 16. Nc4 {[%emt 0:02:40]} Bxc4 {[%emt 0:03:15]} 17. Qxc4 {[%emt 0:00:22]} Qe7 {[%emt 0:00:21]} 18. Qe2 {[%emt 0:01:30]} e5 {[%emt 0:00:45]} 19. dxe5 {[%emt 0:00:22]} Nxe5 {[%emt 0:00:22]} 20. Be3 {[%emt 0:00:22]} Qe6 {[%emt 0:04:00]} 21. Bxb6 {[%emt 0:01:35]} c5 {[%emt 0:01:03]} 22. Bxa5 {[%emt 0:00:25]} Nbc6 {[%emt 0:01:02]} 23. Bb6 {[%emt 0:00:32]} Nd4 {[%emt 0:00:22]} 24. Rxd4 {[%emt 0:00:26]} cxd4 {[%emt 0:00:21]} 25. Bxd4 {[%emt 0:00:21]} Qc4 {[%emt 0:01:15]} 26. Bxe5 {[%emt 0:00:44]} Qxe2 {[%emt 0:00:38]} 27. Nxe2 {[%emt 0:00:21]} Bxe5 {[%emt 0:00:21]} 28. Nc3 {[%emt 0:00:22]} Rfd8 {[%emt 0:01:02]} 29. f4 {[%emt 0:02:39]} Bd4+ {[%emt 0:00:27]} 30. Kf1 {[%emt 0:00:22]} Rb8 {[%emt 0:01:28]} 31. Ra2 {[%emt 0:01:08]} Bc5 {[%emt 0:01:01]} 32. Nd5 {[%emt 0:00:53]} Rb3 {[%emt 0:00:31]} 33. a5 {[%emt 0:01:39]} Kg7 {[%emt 0:00:48]} 34. a6 {[%emt 0:02:00]} Rdb8 {[%emt 0:00:21]} 35. a7 {[%emt 0:00:42]} Ra8 {[%emt 0:00:20]} 36. Ra5 {[%emt 0:00:20]} Bd4 {[%emt 0:00:51]} 37. Ra4 {[%emt 0:00:22]} Bc5 {[%emt 0:00:52]} 38. Ra5 {[%emt 0:00:23]} Bd4 {[%emt 0:00:30]} 39. Ra4 {[%emt 0:00:22]} Bc5 {[%emt 0:00:20]} 40. Ra5 {[%emt 0:00:23]} Rxa7 {[%emt 0:00:43]} 41. Rxc5 {[%emt 0:30:22]} Rxb2 {[%emt 0:30:20]} 42. Rc1 {[%emt 0:01:00]} Raa2 {[%emt 0:00:24]} 43. Ne3 {[%emt 0:00:34]} Rf2+ {[%emt 0:00:32]} 44. Kg1 {[%emt 0:00:21]} Rfe2 {[%emt 0:00:21]} 45. Rc3 {[%emt 0:00:25]} h5 {[%emt 0:00:59]} 46. Bf1 {[%emt 0:00:40]} Re1 {[%emt 0:00:31]} 47. h3 {[%emt 0:00:48]} Rae2 {[%emt 0:00:33]} 48. Ng2 {[%emt 0:00:37]} Ra1 {[%emt 0:00:24]} 49. e5 {[%emt 0:00:32]} Rd2 {[%emt 0:00:31]} 50. g4 {[%emt 0:00:27]} hxg4 {[%emt 0:00:22]} 51. hxg4 {[%emt 0:00:21]} Rdd1 {[%emt 0:00:41]} 52. Ne3 {[%emt 0:00:23]} Rd4 {[%emt 0:00:22]} 53. Rc4 {[%emt 0:00:26]} Rd2 {[%emt 0:00:23]} 54. f5 {[%emt 0:00:28]} gxf5 {[%emt 0:00:22]} 55. gxf5 {[%emt 0:00:23]} Ra5 {[%emt 0:00:51]} 56. Re4 {[%emt 0:00:55]} Rc5 {[%emt 0:00:33]} 57. Rg4+ {[%emt 0:00:28]} Kf8 {[%emt 0:00:23]} 58. Rh4 {[%emt 0:00:37]} Kg7 {[%emt 0:00:37]} 59. Rg4+ {[%emt 0:00:45]} Kf8 {[%emt 0:00:22]} 60. Nc4 {[%emt 0:00:27]} Ra2 {[%emt 0:00:32]} 61. f6 {[%emt 0:00:27]} Rd5 {[%emt 0:00:29]} 62. Rh4 {[%emt 0:00:27]} Kg8 {[%emt 0:00:21]} 63. Rg4+ {[%emt 0:01:19]} Kf8 {[%emt 0:00:30]} 64. Rg5 {[%emt 0:00:00]} Rd1 {[%emt 0:00:23]} 65. Ne3 {[%emt 0:00:28]} Re1 {[%emt 0:00:39]} 66. Rh5 {[%emt 0:00:39]} Ke8 {[%emt 0:00:23]} 67. Ng2 {[%emt 0:01:04]} Rc1 {[%emt 0:00:23]} 68. Rh7 {[%emt 0:00:35]} Ra5 {[%emt 0:00:41]} 69. e6 {[%emt 0:00:33]} fxe6 {[%emt 0:00:23]} 70. Re7+ {[%emt 0:00:22]} Kf8 {[%emt 0:00:21]} 71. Nf4 {[%emt 0:00:27]} Rg5+ {[%emt 0:00:23]} 72. Kh2 {[%emt 0:00:25]} Rxf1 {[%emt 0:00:38]} 73. Nxe6+ {[%emt 0:00:21]} Kg8 {[%emt 0:00:21]} 74. Re8+ {[%emt 0:00:21]} Kf7 {[%emt 0:00:29]} 75. Nxg5+ {[%emt 0:00:49]} Kxe8 {[%emt 0:00:21]} 76. f7+ {[%emt 0:00:21]} Kf8 {[%emt 0:00:27]} 77. Kg3 {[%emt 0:00:22]} Kg7 {[%emt 0:00:23]} 78. Kg4 {[%emt 0:00:37]} Kg6 {[%emt 0:00:25]} 79. Nf3 {[%emt 0:00:31]} Kxf7 {[%emt 0:00:23]} 80. Kf4 {[%emt 0:00:23]} Kf6 {[%emt 0:00:41]} 81. Ke4 {[%emt 0:00:22]} Ra1 {[%emt 0:00:13]} 82. Nd4 {[%emt 0:00:23]} Ra5 {[%emt 0:00:51]} 83. Nf3 {[%emt 0:00:27]} Ke6 {[%emt 0:00:37]} 84. Nd4+ {[%emt 0:00:21]} Kd6 {[%emt 0:00:21]} 85. Nf5+ {[%emt 0:00:22]} Kc5 {[%emt 0:00:22]} 86. Ne3 {[%emt 0:00:38]} Ra3 {[%emt 0:00:33]} 87. Nf5 {[%emt 0:00:28]} Ra8 {[%emt 0:00:48]} 88. Ne3 {[%emt 0:00:52]} Rd8 {[%emt 0:00:21]} 89. Ng4 {[%emt 0:00:44]} Rd4+ {[%emt 0:00:40]} 90. Kf5 {[%emt 0:00:24]} Ra4 {[%emt 0:00:53]} 91. Nf6 {[%emt 0:00:25]} Kd4 {[%emt 0:00:27]} 92. Ke6 {[%emt 0:00:23]} Ra1 {[%emt 0:00:41]} 93. Kf5 {[%emt 0:00:31]} Re1 {[%emt 0:00:11]} 94. Ng4 {[%emt 0:00:43]} Re8 {[%emt 0:00:25]} 95. Nf6 {[%emt 0:00:24]} Re5+ {[%emt 0:01:01]} 96. Kf4 {[%emt 0:00:23]} Ra5 {[%emt 0:00:34]} 97. Ng4 {[%emt 0:00:23]} Ra8 {[%emt 0:00:33]} 98. Kf5 {[%emt 0:00:23]} Ra1 {[%emt 0:00:27]} 99. Nf6 {[%emt 0:00:28]} Re1 {[%emt 0:00:23]} 100. Ng4 {[%emt 0:00:25]} Rf1+ {[%emt 0:00:33]} 101. Ke6 {[%emt 0:00:23]} Rf3 {[%emt 0:00:37]} 102. Nf6 {[%emt 0:00:24]} Rf4 {[%emt 0:00:23]} 103. Nd7 {[%emt 0:00:29]} Re4+ {[%emt 0:00:30]} 104. Kf5 {[%emt 0:00:28]} Re7 {[%emt 0:00:31]} 105. Nf6 {[%emt 0:00:23]} Re5+ {[%emt 0:00:27]} 106. Kf4 {[%emt 0:00:21]} Re6 {[%emt 0:00:21]} 107. Kf5 {[%emt 0:00:21]} Rxf6+ {[%emt 0:00:20]} 108. Kxf6 {[%emt 0:00:33]} 1/2-1/2

[Event "ARM-ch Rapid 2019"]
[Site "Yerevan"]
[Date "2019.01.22"]
[Round "2.5"]
[White "Yegiazarian, Arsen"]
[Black "Davtyan, Artur"]
[Result "0-1"]
[WhiteElo "2399"]
[BlackElo "2396"]
[PlyCount "82"]
[EventDate "2019.01.22"]
[EventType "tourn"]
[EventCountry "ARM"]
[TimeControl "40/5400+30:1800+30"]
[WhiteClock "0:06:43"]
[BlackClock "0:00:30"]

1. e4 {[%emt 1:15:12]} e5 {[%emt 1:15:11]} 2. Nf3 {[%emt 0:00:24]} Nc6 {[%emt 0:00:22]} 3. Bb5 {[%emt 0:00:23]} a6 {[%emt 0:00:21]} 4. Ba4 {[%emt 0:00:23]} Nf6 {[%emt 0:00:22]} 5. d3 {[%emt 0:00:24]} Bc5 {[%emt 0:00:45]} 6. O-O {[%emt 0:00:32]} d6 {[%emt 0:00:22]} 7. c3 {[%emt 0:00:46]} b5 {[%emt 0:00:22]} 8. Bc2 {[%emt 0:00:37]} h6 {[%emt 0:00:30]} 9. h3 {[%emt 0:00:40]} O-O {[%emt 0:00:22]} 10. a4 {[%emt 0:00:26]} Bb7 {[%emt 0:00:25]} 11. Nbd2 {[%emt 0:00:42]} Bb6 {[%emt 0:00:33]} 12. Re1 {[%emt 0:00:32]} Ne7 {[%emt 0:00:34]} 13. b4 {[%emt 0:00:48]} Ng6 {[%emt 0:00:37]} 14. Nb3 {[%emt 0:00:32]} d5 {[%emt 0:01:30]} 15. a5 {[%emt 0:04:29]} Ba7 {[%emt 0:00:28]} 16. Be3 {[%emt 0:00:31]} dxe4 {[%emt 0:01:12]} 17. dxe4 {[%emt 0:00:22]} Bxe3 {[%emt 0:00:31]} 18. Rxe3 {[%emt 0:00:27]} Qe7 {[%emt 0:00:27]} 19. Nc5 {[%emt 0:00:31]} Bc6 {[%emt 0:00:21]} 20. Qf1 {[%emt 0:02:49]} Nd7 {[%emt 0:00:32]} 21. Nxd7 {[%emt 0:00:22]} Bxd7 {[%emt 0:00:22]} 22. Ne1 {[%emt 0:02:25]} Be6 {[%emt 0:01:00]} 23. Nd3 {[%emt 0:00:39]} Bc4 {[%emt 0:00:24]} 24. Qe1 {[%emt 0:00:24]} Bxd3 {[%emt 0:00:29]} 25. Bxd3 {[%emt 0:01:39]} c5 {[%emt 0:00:20]} 26. g3 {[%emt 0:00:38]} Rfd8 {[%emt 0:00:27]} 27. Rb1 {[%emt 0:01:03]} cxb4 {[%emt 0:03:12]} 28. Rxb4 {[%emt 0:01:08]} Rac8 {[%emt 0:01:03]} 29. Bc2 {[%emt 0:01:06]} Rc5 {[%emt 0:01:03]} 30. Bb3 {[%emt 0:01:08]} Qc7 {[%emt 0:00:30]} 31. Rf3 {[%emt 0:01:13]} Rd7 {[%emt 0:00:49]} 32. Kg2 {[%emt 0:00:36]} Qxa5 {[%emt 0:00:48]} 33. Bd5 {[%emt 0:00:42]} Nf8 {[%emt 0:01:45]} 34. Qb1 {[%emt 0:00:29]} Nh7 {[%emt 0:00:40]} 35. c4 {[%emt 0:00:44]} Nf6 {[%emt 0:00:55]} 36. cxb5 {[%emt 0:00:40]} axb5 {[%emt 0:00:33]} 37. Rxf6 {[%emt 0:01:09]} gxf6 {[%emt 0:00:35]} 38. Rb3 {[%emt 0:00:23]} Qd2 {[%emt 0:00:29]} 39. Rf3 {[%emt 0:00:23]} Rc1 {[%emt 0:01:38]} 40. Qxb5 {[%emt 0:00:30]} Qe1 {[%emt 0:00:30]} 41. Bxf7+ {[%emt 0:31:09]} Rxf7 {[%emt 0:30:28]} 0-1

[Event "ARM-ch Rapid 2019"]
[Site "Yerevan"]
[Date "2019.01.22"]
[Round "2.6"]
[White "Gaboyan, Susanna"]
[Black "Chibukhchian, Artur"]
[Result "0-1"]
[WhiteElo "2111"]
[BlackElo "2384"]
[PlyCount "62"]
[EventDate "2019.01.22"]
[EventType "tourn"]
[EventCountry "ARM"]
[TimeControl "40/5400+30:1800+30"]
[WhiteClock "0:00:31"]
[BlackClock "0:02:05"]

1. Nf3 {[%emt 1:15:13]} d5 {[%emt 1:15:12]} 2. g3 {[%emt 0:00:24]} c5 {[%emt 0:00:22]} 3. Bg2 {[%emt 0:00:22]} Nf6 {[%emt 0:00:22]} 4. O-O {[%emt 0:00:23]} g6 {[%emt 0:00:25]} 5. d4 {[%emt 0:00:24]} cxd4 {[%emt 0:00:37]} 6. Nxd4 {[%emt 0:00:22]} Bg7 {[%emt 0:00:24]} 7. Nc3 {[%emt 0:00:25]} O-O {[%emt 0:00:37]} 8. Nb3 {[%emt 0:00:24]} e6 {[%emt 0:00:59]} 9. e4 {[%emt 0:00:26]} dxe4 {[%emt 0:01:22]} 10. Nxe4 {[%emt 0:00:24]} Nxe4 {[%emt 0:01:05]} 11. Bxe4 {[%emt 0:00:24]} Qc7 {[%emt 0:00:50]} 12. Qe2 {[%emt 0:01:37]} Nd7 {[%emt 0:02:26]} 13. c3 {[%emt 0:00:56]} Nf6 {[%emt 0:00:40]} 14. Bg2 {[%emt 0:01:18]} e5 {[%emt 0:00:22]} 15. Bg5 {[%emt 0:02:02]} Bg4 {[%emt 0:00:31]} 16. Qb5 {[%emt 0:00:34]} Rab8 {[%emt 0:01:15]} 17. h3 {[%emt 0:00:31]} Bf5 {[%emt 0:03:45]} 18. Rfe1 {[%emt 0:03:00]} h6 {[%emt 0:00:22]} 19. Be3 {[%emt 0:00:59]} b6 {[%emt 0:00:21]} 20. c4 {[%emt 0:02:04]} Bd3 {[%emt 0:01:05]} 21. Rac1 {[%emt 0:01:15]} Rbc8 {[%emt 0:00:45]} 22. Qb4 {[%emt 0:01:18]} Rfd8 {[%emt 0:01:24]} 23. c5 {[%emt 0:00:29]} Qe7 {[%emt 0:01:43]} 24. Qa4 {[%emt 0:01:06]} b5 {[%emt 0:00:44]} 25. Qa5 {[%emt 0:00:30]} Nd5 {[%emt 0:00:50]} 26. c6 {[%emt 0:02:14]} Nxe3 {[%emt 0:00:48]} 27. Rxe3 {[%emt 0:00:23]} e4 {[%emt 0:00:35]} 28. Nc5 {[%emt 0:02:01]} Bd4 {[%emt 0:03:30]} 29. Rxd3 {[%emt 0:00:24]} exd3 {[%emt 0:00:36]} 30. Nxd3 {[%emt 0:00:23]} Qe2 {[%emt 0:00:37]} 31. Qxb5 {[%emt 0:01:10]} Bxf2+ {[%emt 0:00:25]} 0-1

[Event "ARM-ch Rapid 2019"]
[Site "Yerevan"]
[Date "2019.01.22"]
[Round "2.9"]
[White "Mkrtchyan, Sargis R."]
[Black "Baghdasaryan, Vahe"]
[Result "1-0"]
[WhiteElo "2199"]
[BlackElo "2354"]
[PlyCount "41"]
[EventDate "2019.01.22"]
[EventType "tourn"]
[EventCountry "ARM"]
[TimeControl "40/5400+30:1800+30"]
[WhiteClock "0:00:33"]
[BlackClock "0:00:29"]

1. d4 {[%emt 1:15:14]} d5 {[%emt 1:15:13]} 2. Nf3 {[%emt 0:00:32]} Nf6 {[%emt 0:00:21]} 3. c4 {[%emt 0:00:29]} c6 {[%emt 0:00:22]} 4. Qc2 {[%emt 0:00:36]} g6 {[%emt 0:01:24]} 5. Bf4 {[%emt 0:00:39]} Na6 {[%emt 0:02:44]} 6. e3 {[%emt 0:02:33]} Bf5 {[%emt 0:02:48]} 7. Qb3 {[%emt 0:01:20]} Nb4 {[%emt 0:00:22]} 8. Qxb4 {[%emt 0:02:59]} e5 {[%emt 0:00:22]} 9. Qxb7 {[%emt 0:03:41]} Rb8 {[%emt 0:00:26]} 10. Qxa7 {[%emt 0:01:03]} exf4 {[%emt 0:07:24]} 11. Ne5 {[%emt 0:00:31]} Bd7 {[%emt 0:00:30]} 12. cxd5 {[%emt 0:02:53]} cxd5 {[%emt 0:03:03]} 13. Nc3 {[%emt 0:00:42]} fxe3 {[%emt 0:00:51]} 14. fxe3 {[%emt 0:00:53]} Rxb2 {[%emt 0:00:47]} 15. Bd3 {[%emt 0:02:31]} Bb4 {[%emt 0:00:25]} 16. O-O {[%emt 0:00:59]} Be6 {[%emt 0:00:46]} 17. Rxf6 {[%emt 0:00:43]} Qxf6 {[%emt 0:00:26]} 18. Rf1 {[%emt 0:00:23]} Qe7 {[%emt 0:00:27]} 19. Qb8+ {[%emt 0:00:36]} Qd8 {[%emt 0:00:21]} 20. Bb5+ {[%emt 0:00:22]} Ke7 {[%emt 0:00:25]} 21. Nc6+ {[%emt 0:00:22]} 1-0